bitfinex-derivatives/quotes_ETHF0:USTF0_20210705
["timestamp","ask_amount","ask_price","bid_price","bid_amount"]
[1625506971998,1.0,2169.7,2167.0,16.93856326]
[1625506972100,3.5713,2169.7,2167.0,16.93856326]
[1625506972350,3.5713,2169.7,2167.3,1.35546403]
[1625506972449,2.5713,2169.7,2167.3,1.35546403]
[1625506972753,2.5713,2169.7,2167.4,1.35536292]
[1625506972850,2.5713,2169.7,2167.4,4.62886292]
[1625506972967,2.5713,2169.7,2167.5,1.35533772]
[1625506973200,2.5713,2169.7,2167.5,18.01880972]
[1625506973603,2.20527,2168.2,2168.1,2.20527]
[1625506973704,2.20527,2168.2,2167.4,6.11432781]
[1625506974105,2.20527,2168.2,2167.4,1.35532781]
[1625506974204,2.20527,2168.2,2167.2,1.35550536]
[1625506974905,2.20527,2168.2,2167.3,1.35547091]
[1625506975006,2.20527,2168.2,2167.3,4.19407091]
[1625506975107,2.20527,2168.2,2167.3,20.81241791]
[1625506975219,1.0,2169.1,2167.4,1.35541006]
[1625506975306,14.2917,2169.6,2167.4,1.35541006]
[1625506975606,2.20527,2168.5,2168.4,2.20527]
[1625506975711,2.20527,2168.5,2168.4,4.45717]
[1625506977610,4.41054,2168.5,2168.4,4.45717]
[1625506979923,14.2917,2169.6,2168.4,4.45717]
[1625506981624,2.20527,2169.3,2169.2,2.20527]
[1625506981825,2.20527,2169.3,2169.2,5.26817]
[1625506984345,2.20527,2169.3,2169.2,3.0629]
[1625506987304,2.20527,2169.3,2169.1,2.20527]
[1625506989267,2.20527,2169.3,2168.0,1.35514648]
[1625506989569,2.20527,2169.3,2167.9,43.73227117]
[1625506989776,2.20527,2168.9,2168.7,2.20527]
[1625506993336,2.20527,2168.9,2168.5,2.20527]
[1625506993434,2.20527,2168.9,2167.9,42.3771]
[1625506993734,2.20527,2168.4,2168.3,2.20527]
[1625506993834,2.20527,2168.4,2168.0,2.20527]
[1625506994337,2.20527,2168.4,2165.8,1.35440651]
[1625506994439,2.20527,2168.4,2166.5,10.18097245]
[1625506994536,2.20527,2168.4,2166.9,0.18733636]
[1625506994636,2.20527,2168.4,2167.1,1.35568321]
[1625506994938,2.20527,2168.4,2167.0,1.35571132]
[1625506995737,2.20527,2167.8,2167.7,2.20527]
[1625506997747,4.41054,2167.8,2167.7,2.20527]
[1625506999655,1.0,2169.1,2167.7,2.20527]
[1625506999772,2.20527,2168.9,2168.7,2.20527]
[1625506999858,14.6408,2169.6,2168.7,2.20527]
[1625506999955,14.6408,2169.6,2168.7,4.75607]
[1625507000155,5.9795507,2170.1,2168.7,4.75607]
[1625507000272,4.759,2170.1,2168.7,4.75607]
[1625507001029,54.4178,2170.6,2168.7,4.75607]
[1625507001530,54.4178,2170.6,2168.7,1.4397]
[1625507001665,5.0,2170.5,2167.8,2.35502867]
[1625507001832,2.20527,2168.3,2168.0,2.20527]
[1625507001933,2.20527,2168.3,2168.0,5.48847]
[1625507002431,2.20527,2168.3,2168.0,3.2832]
[1625507003082,2.20527,2168.3,2167.7,2.20527]
[1625507003784,2.20527,2168.3,2168.0,2.20527]
[1625507005586,2.20527,2168.3,2167.7,2.20527]
[1625507005687,4.91357,2168.3,2167.7,2.20527]
[1625507005787,4.41054,2167.8,2167.7,2.20527]
[1625507012600,7.91784,2167.8,2167.7,2.20527]
[1625507013707,7.91784,2167.8,2167.3,2.20527]
[1625507013921,2.20527,2167.4,2167.3,2.20527]
[1625507014604,2.20527,2167.4,2166.9,2.20527]
[1625507015106,2.20527,2167.4,2165.8,52.9626]
[1625507015107,2.20527,2167.4,2166.0,1.35507157]
[1625507015707,56.9932,2167.0,2165.9,1.355137]
[1625507015917,5.0,2166.9,2165.9,1.355137]
[1625507015975,4.41054,2166.0,2165.9,1.355137]
[1625507016199,4.41054,2166.0,2165.3,1.35538866]
[1625507016580,4.41054,2166.0,2165.2,4.10281413]
[1625507016581,4.41054,2166.0,2165.2,2.20527]
[1625507016755,7.58484,2166.0,2165.2,2.20527]
[1625507017066,39.1466,2165.8,2165.2,2.20527]
[1625507017175,39.1466,2165.8,2164.7,1.35461155]
[1625507017256,39.1466,2165.8,2164.3,3.52199003]
[1625507017356,39.1466,2165.8,2164.3,1.95999003]
[1625507017464,39.1466,2165.8,2164.2,1.35514059]
[1625507017573,5.0,2165.7,2164.2,1.35514059]
[1625507017960,4.41054,2164.3,2164.2,1.35514059]
[1625507018059,7.56854,2164.3,2164.0,1.858e-05]
[1625507018161,7.56854,2164.3,2163.8,3.52336553]
[1625507018296,7.56854,2164.3,2162.4,2.20527]
[1625507018297,7.56854,2164.3,2163.3,1.35564803]
[1625507018866,5.0,2164.2,2162.6,4.33807369]
[1625507019095,5.0,2164.2,2162.3,1.35247619]
[1625507019179,39.2656,2162.5,2162.3,1.35247619]
[1625507019276,42.2694,2162.5,2162.3,1.35247619]
[1625507019473,42.2694,2162.5,2162.2,1.61574286]
[1625507019570,42.2694,2162.5,2161.1,1.35296781]
[1625507019965,4.41054,2161.2,2161.1,1.35296781]
[1625507020274,4.41054,2161.2,2160.5,1.77358437]
[1625507020471,5.0,2161.1,2160.5,1.77358437]
[1625507020858,5.0,2161.1,2160.5,0.09958437]
[1625507021040,7.565,2161.1,2160.5,0.09958437]
[1625507021170,2.565,2161.1,2160.4,2.70673794]
[1625507021406,2.565,2161.1,2159.6,6.76684484]
[1625507021843,39.7698,2159.7,2159.6,5.20184484]
[1625507022611,39.7698,2159.7,2159.1,9.47358278]
[1625507022756,39.7698,2159.7,2157.3,0.49794633]
[1625507022811,39.7698,2159.7,2159.3,0.49116013]
[1625507022837,4.41054,2159.5,2159.1,1.16108038]
[1625507023080,4.41054,2159.5,2158.6,2.53799241]
[1625507023100,4.41054,2159.5,2156.7,17.31067]
[1625507023144,4.41054,2159.5,2156.7,16.34161633]
[1625507023160,4.41054,2159.5,2156.7,2.20527]
[1625507023675,7.31224,2159.5,2156.8,16.879901]
[1625507023895,7.31224,2159.5,2156.8,15.411901]
[1625507023975,2.20527,2157.0,2156.9,2.20527]
[1625507024074,2.3327,2158.3,2156.9,2.20527]
[1625507024274,2.3327,2158.3,2156.6,2.34245471]
[1625507024474,2.3327,2158.3,2156.6,0.13718471]
[1625507024678,2.3327,2158.3,2156.6,0.08718471]
[1625507025892,4.41054,2156.7,2156.6,0.08718471]
[1625507026292,16.90567,2158.2,2156.6,0.08718471]
[1625507026429,2.7116,2159.0,2156.6,0.08718471]
[1625507026993,43.9052,2158.9,2156.6,0.08718471]
[1625507027091,60.843796,2158.9,2156.6,0.08718471]
[1625507027594,16.938596,2158.9,2156.6,0.08718471]
[1625507027857,16.938596,2158.9,2157.1,1.15]
[1625507028007,2.20527,2158.6,2158.5,2.20527]
[1625507028335,2.20527,2158.6,2158.3,2.20527]
[1625507028414,2.20527,2158.6,2157.1,1.15]
[1625507028606,16.805074,2158.8,2157.1,1.15]
[1625507028703,3.4454,2159.9,2157.1,1.15]
[1625507028803,3.4454,2159.9,2157.1,4.3956]
[1625507029830,2.8986,2160.5,2157.1,4.3956]
[1625507030005,2.20527,2158.8,2158.7,2.20527]
[1625507030212,2.8671,2161.3,2158.7,2.20527]
[1625507030705,2.8671,2161.3,2159.2,1.15]
[1625507030909,16.863661,2161.2,2159.2,1.15]
[1625507031013,21.863661,2161.2,2159.0,56.3219]
[1625507031405,16.863661,2161.2,2159.0,56.3219]
[1625507031907,2.20527,2159.1,2159.0,56.3219]
[1625507032005,4.41054,2159.1,2158.4,2.20527]
[1625507034079,2.20527,2158.5,2158.4,2.15527]
[1625507034178,2.20527,2159.1,2158.4,2.15527]
[1625507034271,2.9196,2160.8,2158.4,2.15527]
[1625507034523,2.9196,2160.8,2158.9,1.15]
[1625507034723,2.9196,2160.8,2158.9,4.2925]
[1625507035427,2.9196,2160.8,2158.9,1.15]
[1625507035926,2.20527,2159.3,2159.2,2.20527]
[1625507036231,56.8454,2160.0,2159.2,2.20527]
[1625507036361,3.2183,2159.6,2159.2,2.20527]
[1625507036928,3.2183,2159.6,2158.9,1.15]
[1625507038004,2.20527,2159.3,2159.2,2.20527]
[1625507038203,3.12017,2159.3,2159.2,2.20527]
[1625507038478,2.20527,2159.3,2159.2,2.20527]
[1625507038698,3.133,2159.6,2159.2,2.20527]
[1625507039413,56.1548,2162.0,2159.2,2.20527]
[1625507039987,2.20527,2160.6,2160.5,2.20527]
[1625507040187,56.1548,2162.0,2160.5,2.20527]
[1625507040302,56.1548,2162.0,2160.5,5.47767]
[1625507040445,15.301,2163.7,2160.5,5.47767]
[1625507040737,15.301,2163.7,2161.0,1.15]
[1625507040837,15.301,2163.7,2161.0,4.465]
[1625507041538,1.0,2165.7,2161.0,4.465]
[1625507041641,14.4887,2166.4,2161.0,4.465]
[1625507041740,0.16280545,2166.3,2161.0,4.465]
[1625507041938,14.44220545,2166.3,2161.0,4.465]
[1625507042039,14.44220545,2166.3,2164.3,2.20527]
[1625507042139,14.2794,2166.3,2163.5,2.9841]
[1625507042369,16.740035,2166.2,2163.5,2.9841]
[1625507042539,72.4932,2166.5,2163.5,2.9841]
[1625507042749,14.7543,2167.9,2164.0,1.15]
[1625507042943,14.7543,2167.9,2164.0,3.4328]
[1625507042944,14.4813,2167.8,2164.0,3.4328]
[1625507043145,14.4813,2167.8,2164.0,1.15]
[1625507043253,0.16400859,2167.7,2164.0,1.15]
[1625507043344,41.9603,2166.1,2164.0,1.15]
[1625507043770,41.9603,2166.1,2164.0,0.05465002]
[1625507043953,1.09534998,2163.7,2161.2,15.5982]
[1625507044077,2.6866,2163.7,2162.5,2.20527]
[1625507044854,2.6866,2163.7,2162.5,4.53067]
[1625507045145,4.41054,2164.1,2162.5,4.53067]
[1625507045643,14.4104,2165.9,2162.5,4.53067]
[1625507046060,2.20527,2164.5,2164.2,2.20527]
[1625507046161,2.20527,2164.5,2164.2,5.30157]
[1625507046557,2.20527,2164.5,2162.5,2.3254]
[1625507047315,2.20527,2164.5,2162.6,16.821391]
[1625507049568,14.4104,2165.9,2162.6,16.821391]
[1625507050028,2.20527,2164.5,2164.4,2.20527]
[1625507050523,2.20527,2164.7,2164.4,2.20527]
[1625507050622,2.20527,2164.7,2164.4,4.74407]
[1625507050724,14.2901,2167.1,2164.4,4.74407]
[1625507051628,14.2901,2167.1,2164.5,45.1115]
[1625507051927,14.2901,2167.1,2164.5,61.835309]
[1625507052031,2.20527,2166.7,2164.5,61.835309]
[1625507052346,2.20527,2166.7,2163.7,3.207]
[1625507052459,4.84647,2166.7,2163.7,3.207]
[1625507052640,4.84647,2166.7,2162.9,14.937]
[1625507053341,4.84647,2166.7,2163.0,16.633612]
[1625507053747,4.84647,2166.7,2162.9,14.937]
[1625507053950,16.847916,2166.6,2162.9,14.937]
[1625507054053,2.20527,2164.5,2164.4,2.20527]
[1625507054342,2.20527,2164.5,2164.2,2.20527]
[1625507054459,2.20527,2164.3,2164.2,2.20527]
[1625507054948,2.20527,2164.3,2161.2,14.0784]
[1625507055060,5.13237,2164.3,2161.2,14.0784]
[1625507056149,2.20527,2163.5,2163.4,2.20527]
[1625507056257,5.67467,2163.5,2163.4,2.20527]
[1625507056748,5.67467,2163.5,2163.1,2.20527]
[1625507056948,5.67467,2163.5,2161.2,14.0784]
[1625507057256,5.67467,2163.5,2160.7,2.6678]
[1625507058105,2.20527,2162.1,2162.0,2.20527]
[1625507058803,2.20527,2162.1,2161.8,2.20527]
[1625507058903,2.20527,2162.1,2160.2,15.1849]
[1625507059102,2.20527,2162.1,2160.1,15.3393]
[1625507059912,2.19174,2162.4,2160.1,15.3393]
[1625507060112,2.20527,2161.0,2160.9,2.20527]
[1625507061210,3.5477,2162.9,2160.9,2.20527]
[1625507061322,47.5674,2164.0,2160.9,4.40377]
[1625507061775,0.16548285,2163.9,2160.9,4.40377]
[1625507061941,0.16600801,2164.9,2160.9,4.40377]
[1625507062044,16.691019,2163.9,2160.9,4.40377]
[1625507062130,2.20527,2163.7,2163.2,2.20527]
[1625507062221,2.20527,2163.7,2163.2,5.67397]
[1625507063079,2.20527,2163.9,2163.2,5.67397]
[1625507064132,2.20527,2163.9,2163.6,2.20527]
[1625507064584,3.1891,2165.9,2163.6,2.20527]
[1625507064813,3.1891,2165.9,2163.6,1.10962608]
[1625507064912,3.1891,2165.9,2163.2,5.67397]
[1625507064990,14.8212,2166.7,2163.2,5.67397]
[1625507065091,0.16723593,2166.6,2163.2,5.67397]
[1625507065292,0.16737281,2166.7,2163.2,5.67397]
[1625507065588,16.733991,2166.5,2163.2,5.67397]
[1625507065688,0.16753094,2166.4,2163.2,5.67397]
[1625507066021,16.768736,2166.3,2163.2,5.67397]
[1625507066090,0.16756685,2166.2,2163.2,5.67397]
[1625507066191,2.20527,2163.9,2163.8,2.20527]
[1625507066296,2.20527,2163.9,2163.8,4.98317]
[1625507066497,16.699153,2166.7,2163.8,4.98317]
[1625507066697,0.16795575,2166.6,2163.8,4.98317]
[1625507067049,0.1678662,2166.7,2163.8,4.98317]
[1625507067148,16.867341,2166.5,2163.8,4.98317]
[1625507067246,0.16808439,2166.4,2163.8,4.98317]
[1625507067652,16.903368,2166.6,2163.8,4.98317]
[1625507067653,16.755487,2166.3,2163.8,4.98317]
[1625507067950,16.755487,2166.3,2163.8,2.7779]
[1625507068054,16.700072,2166.4,2163.2,5.67397]
[1625507068163,2.20527,2163.6,2163.5,2.20527]
[1625507068288,2.20527,2163.6,2161.9,44.775]
[1625507068289,4.84287,2163.6,2161.9,44.775]
[1625507068475,4.84287,2163.6,2154.2,2.61471]
[1625507068564,4.84287,2163.6,2156.7,1.1]
[1625507068866,2.6376,2163.6,2156.7,1.1]
[1625507068963,2.6376,2163.6,2161.4,50.7074]
[1625507069264,2.6376,2163.6,2161.5,16.728741]
[1625507069365,2.9735,2165.5,2161.5,16.728741]
[1625507069465,2.9735,2165.5,2161.5,19.093641]
[1625507069566,14.2408,2165.4,2161.5,19.093641]
[1625507069663,0.1682997,2165.3,2161.5,19.093641]
[1625507070216,2.20527,2164.2,2163.8,2.20527]
[1625507070320,2.20527,2164.2,2163.8,5.26037]
[1625507072126,2.20527,2164.2,2163.8,3.0551]
[1625507072220,2.20527,2163.9,2163.5,2.20527]
[1625507072621,2.20527,2163.9,2163.3,2.20527]
[1625507073383,2.20527,2163.9,2161.5,16.4908]
[1625507073726,2.20527,2163.9,2161.5,2.3649]
[1625507073829,2.20527,2163.9,2161.4,50.7074]
[1625507074027,2.20527,2163.9,2161.6,16.854322]
[1625507074131,2.20527,2163.9,2161.6,20.413622]
[1625507074230,2.20527,2163.3,2163.2,2.20527]
[1625507074933,2.20527,2163.3,2163.0,2.20527]
[1625507075047,5.74127,2163.3,2159.4,5.0]
[1625507075166,5.74127,2163.3,2154.6,2.61839367]
[1625507075249,5.74127,2163.3,2154.4,80.7326814]
[1625507075446,5.74127,2163.3,2156.0,1.1]
[1625507075700,5.74127,2163.3,2156.7,1.0]
[1625507075811,5.74127,2163.3,2158.8,5.0]
[1625507076207,2.20527,2162.5,2162.4,2.20527]
[1625507078373,38.9843,2164.8,2162.4,2.20527]
[1625507078473,2.9431,2166.5,2162.4,5.21127]
[1625507079073,5.0,2165.8,2162.4,5.21127]
[1625507079175,19.370464,2165.3,2162.4,5.21127]
[1625507079773,19.370464,2165.3,2162.4,3.006]
[1625507079873,19.370464,2165.3,2160.9,2.6365]
[1625507080073,1.15,2164.8,2160.9,2.6365]
[1625507080176,3.7416,2164.8,2160.9,2.6365]
[1625507080275,3.7416,2164.8,2162.0,2.20527]
[1625507080276,2.20527,2162.1,2162.0,2.20527]
[1625507080474,16.921825,2164.7,2162.0,2.20527]
[1625507080676,3.7416,2164.8,2162.0,2.20527]
[1625507080874,2.5916,2164.8,2162.0,2.20527]
[1625507081175,16.687649,2164.7,2162.0,2.20527]
[1625507081826,3.3588,2165.8,2162.0,2.20527]
[1625507081925,3.3588,2165.8,2162.0,4.79167]
[1625507082029,53.0414,2166.8,2162.0,4.79167]
[1625507082227,53.0414,2166.8,2163.2,2.20527]
[1625507082228,2.20527,2163.3,2163.2,2.20527]
[1625507082328,2.20527,2163.3,2163.2,4.37227]
[1625507082433,5.0,2166.1,2163.2,4.37227]
[1625507082532,16.689716,2165.3,2163.2,4.37227]
[1625507082833,3.3084,2166.3,2163.2,4.37227]
[1625507082935,53.0414,2166.8,2163.2,4.37227]
[1625507083335,58.0414,2166.8,2163.2,4.37227]
[1625507083736,5.0,2166.6,2163.2,4.37227]
[1625507083863,0.9291,2166.5,2163.2,2.20527]
[1625507084043,0.9291,2166.5,2161.6,14.5846]
[1625507084142,16.855901,2165.3,2161.6,14.5846]
[1625507084251,2.20527,2162.1,2162.0,2.20527]
[1625507084654,2.20527,2162.1,2157.4,0.9231]
[1625507084842,2.20527,2162.1,2158.6,15.2829]
[1625507085343,2.20527,2162.1,2158.7,16.888554]
[1625507086196,2.20527,2162.1,2160.7,2.20527]
[1625507086295,2.20527,2160.8,2160.7,2.20527]
[1625507087146,14.105,2163.0,2160.7,2.20527]
[1625507087247,14.105,2163.0,2160.7,4.84997]
[1625507087900,14.105,2163.0,2160.9,52.7707]
[1625507088253,2.20527,2162.9,2162.8,2.20527]
[1625507088352,15.2074,2165.2,2162.8,5.28067]
[1625507088452,0.9183,2166.6,2162.8,5.28067]
[1625507088558,0.1714669,2166.5,2162.8,5.28067]
[1625507088656,14.0689,2166.4,2162.8,5.28067]
[1625507088964,5.0,2166.3,2162.8,5.28067]
[1625507089062,21.73823,2166.3,2162.8,5.28067]
[1625507089162,1.15,2165.9,2162.8,5.28067]
[1625507089562,16.692749,2165.8,2162.8,5.28067]
[1625507089662,5.0,2165.7,2162.8,5.28067]
[1625507090012,16.817761,2165.6,2162.8,5.28067]
[1625507090212,4.41054,2162.9,2162.8,5.28067]
[1625507090313,16.817761,2165.6,2162.8,5.28067]
[1625507090512,1.15,2165.9,2162.8,5.28067]
[1625507090615,16.895942,2165.8,2162.8,5.28067]
[1625507091645,1.15,2165.9,2162.8,5.28067]
[1625507092297,2.20527,2163.3,2163.2,2.20527]
[1625507092949,2.20527,2163.3,2162.8,3.0754]
[1625507093062,2.20527,2163.3,2161.2,14.6695]
[1625507093357,2.20527,2163.3,2161.1,14.8954]
[1625507094254,2.20527,2161.6,2161.5,2.20527]
[1625507095753,7e-05,2161.6,2161.5,2.20527]
[1625507095854,14.9315,2164.7,2161.5,2.20527]
[1625507095954,14.9315,2164.7,2161.5,4.75367]
[1625507096354,2.20527,2163.1,2163.0,2.20527]
[1625507096456,2.20527,2163.1,2163.0,5.27757]
[1625507097360,14.9315,2164.7,2163.0,5.27757]
[1625507097840,14.9315,2164.7,2163.0,3.0723]
[1625507097935,14.9315,2164.7,2161.5,2.5484]
[1625507098030,16.76537,2164.6,2161.5,2.5484]
[1625507098333,2.20527,2162.6,2162.5,2.20527]
[1625507098426,2.7308,2163.8,2162.5,2.20527]
[1625507099526,14.9315,2164.7,2162.5,2.20527]
[1625507100181,14.9315,2164.7,2162.6,16.758117]
[1625507100279,14.9315,2164.7,2163.8,2.20527]
[1625507100379,2.20527,2163.9,2163.8,2.20527]
[1625507100682,2.20527,2163.9,2163.3,2.8017]
[1625507101482,2.20527,2163.9,2160.7,33.6505]
[1625507101583,4.47867,2163.9,2160.7,33.6505]
[1625507101984,9.23767,2163.9,2160.7,33.6505]
[1625507102385,2.20527,2162.4,2162.2,2.20527]
[1625507104083,19.34,2164.5,2162.2,2.20527]
[1625507104185,19.34,2164.5,2162.2,5.41437]
[1625507104411,2.20527,2163.9,2163.8,2.20527]
[1625507104488,2.20527,2163.9,2163.8,5.04387]
[1625507105187,2.20527,2163.9,2163.8,2.8386]
[1625507105496,7e-05,2163.9,2163.8,2.8386]
[1625507105590,7e-05,2163.9,2162.2,3.2091]
[1625507105591,2.5435,2165.5,2162.2,3.2091]
[1625507105689,14.7469,2166.3,2162.2,3.2091]
[1625507106224,14.7469,2166.3,2162.3,16.672203]
[1625507106405,2.20527,2165.3,2162.3,16.672203]
[1625507107132,14.7469,2166.3,2162.4,0.18506745]
[1625507107411,14.7469,2166.3,2162.8,4.1077]
[1625507107513,14.7469,2166.3,2162.9,0.18497988]
[1625507107874,14.7469,2166.3,2162.9,17.00914388]
[1625507107964,14.7469,2166.3,2163.2,41.653]
[1625507108373,2.20527,2165.2,2165.0,2.20527]
[1625507109871,2.9751,2167.6,2165.0,2.20527]
[1625507109972,2.9751,2167.6,2165.0,5.59767]
[1625507110071,14.8156,2167.7,2165.0,5.59767]
[1625507110432,14.8156,2167.7,2166.0,2.20527]
[1625507110433,2.20527,2166.1,2166.0,2.20527]
[1625507110541,2.20527,2166.1,2166.0,5.28447]
[1625507110733,2.20527,2166.1,2166.0,3.0792]
[1625507111126,14.8156,2167.7,2166.0,3.0792]
[1625507112031,7.1404,2167.7,2166.0,3.0792]
[1625507112133,2.38051131,2169.9,2166.0,3.0792]
[1625507112231,15.1012,2170.2,2166.0,3.0792]
[1625507112435,2.20527,2168.6,2168.4,2.20527]
[1625507112576,2.20527,2168.6,2168.4,4.37607]
[1625507113039,2.20527,2168.6,2168.4,0.27321309]
[1625507113296,2.20527,2168.6,2166.1,15.335]
[1625507113365,2.20527,2168.6,2165.8,52.404]
[1625507114395,2.20527,2167.1,2166.7,2.20527]
[1625507114501,4.48757,2167.1,2166.7,2.20527]
[1625507114927,4.48757,2167.1,2163.2,41.653]
[1625507115000,4.48757,2167.1,2163.3,0.18376443]
[1625507115199,4.48757,2167.1,2163.2,41.653]
[1625507115440,2.2823,2167.1,2163.2,41.653]
[1625507115535,3.03,2168.8,2163.2,41.653]
[1625507115607,3.03,2168.8,2163.3,21.82391296]
[1625507115725,3.03,2168.8,2163.3,16.82391296]
[1625507115822,3.03,2168.8,2163.7,1.15]
[1625507115906,3.03,2168.8,2163.7,3.9453]
[1625507116005,14.1605,2168.7,2163.7,3.9453]
[1625507116154,30.985368,2168.7,2163.8,16.757342]
[1625507116456,2.20527,2166.2,2166.1,2.20527]
[1625507116555,7e-05,2166.2,2166.1,2.20527]
[1625507116659,3.03,2168.8,2166.1,4.79537]
[1625507116757,16.718446,2168.6,2166.1,4.79537]
[1625507117056,14.1113,2169.9,2166.1,4.79537]
[1625507117757,16.603773,2169.8,2166.1,4.79537]
[1625507117970,14.1113,2169.9,2166.1,4.79537]
[1625507118175,14.1113,2169.9,2166.2,16.666715]
[1625507118425,14.1113,2169.9,2168.1,2.20527]
[1625507118426,2.20527,2168.2,2168.1,2.20527]
[1625507118726,2.20527,2168.2,2167.0,2.833]
[1625507119632,2.20527,2168.2,2165.6,14.0844]
[1625507119929,2.20527,2168.2,2163.5,5.0]
[1625507120229,2.20527,2168.2,2163.8,19.7108]
[1625507120378,2.20527,2168.2,2167.5,2.20527]
[1625507120480,2.20527,2167.6,2167.5,2.20527]
[1625507121229,3.3954,2169.1,2167.5,2.20527]
[1625507121331,14.1113,2169.9,2167.5,2.20527]
[1625507121432,3.5073,2170.0,2167.5,2.20527]
[1625507121933,16.781393,2169.9,2167.5,2.20527]
[1625507122434,2.20527,2168.2,2168.1,2.20527]
[1625507122737,2.20527,2168.2,2167.5,2.20527]
[1625507122834,5.74517,2168.2,2167.5,2.20527]
[1625507124145,2.20527,2168.2,2167.5,2.20527]
[1625507125448,4.63847,2168.2,2167.5,2.20527]
[1625507125549,4.63847,2168.2,2165.6,14.1053]
[1625507125850,4.63847,2168.2,2164.3,14.7613]
[1625507126048,4.63847,2168.2,2164.3,19.7613]
[1625507126453,4.63847,2168.2,2167.9,2.20527]
[1625507126553,2.20527,2168.2,2167.9,2.20527]
[1625507126755,2.20527,2168.2,2167.6,2.8271]
[1625507127710,2.20527,2168.2,2166.6,47.6855]
[1625507128516,2.20527,2167.6,2167.5,2.20527]
[1625507130929,14.6028,2169.4,2167.5,2.20527]
[1625507131130,14.6028,2169.4,2167.5,4.85517]
[1625507132493,2.20527,2168.8,2168.7,2.20527]
[1625507132788,2.20527,2168.8,2168.5,2.20527]
[1625507132889,2.20527,2168.8,2166.9,2.4769]
[1625507132988,2.20527,2168.8,2163.6,3.67841553]
[1625507133089,2.20527,2168.8,2166.8,14.7075]
[1625507133390,2.20527,2168.8,2165.8,3.0102]
[1625507133490,2.20527,2168.8,2166.8,2.8723]
[1625507134503,4.41054,2168.8,2168.7,2.20527]
[1625507134903,4.41054,2168.8,2168.5,2.20527]
[1625507135003,0.52876404,2168.3,2167.5,2.997]
[1625507135707,0.52876404,2168.3,2166.7,14.031]
[1625507136182,0.52876404,2168.3,2165.9,14.6694]
[1625507136478,2.20527,2167.7,2167.6,2.20527]
[1625507137284,7e-05,2167.7,2167.6,2.20527]
[1625507137384,0.52876404,2168.3,2167.6,2.20527]
[1625507138536,2.73403404,2168.3,2168.2,2.20527]
[1625507138846,15.0223,2170.0,2168.2,2.20527]
[1625507140554,2.20527,2169.0,2168.8,2.20527]
[1625507140958,2.20527,2169.0,2168.2,2.20527]
[1625507141057,4.41837,2169.0,2165.9,14.6694]
[1625507142562,2.20527,2167.9,2167.8,2.20527]
[1625507142771,5.48987,2167.9,2167.8,2.20527]
[1625507142965,5.48987,2167.9,2165.9,14.6694]
[1625507143072,5.48987,2167.9,2159.5,1.33433913]
[1625507143182,5.48987,2167.9,2163.7,5.0]
[1625507143262,5.48987,2167.9,2163.8,14.695]
[1625507144566,2.20527,2166.8,2166.6,2.20527]
[1625507146568,4.41054,2166.8,2166.6,2.20527]
[1625507146665,4.41054,2166.8,2164.7,2.7374]
[1625507148619,2.20527,2165.2,2165.1,2.20527]
[1625507148722,2.20527,2165.2,2163.3,14.1555]
[1625507149120,2.20527,2165.2,2161.8,14.3659]
[1625507149721,2.20527,2165.2,2161.9,16.808746]
[1625507150322,2.20527,2165.2,2163.4,53.3306]
[1625507150624,2.20527,2165.2,2165.1,2.20527]
[1625507150723,2.20527,2165.2,2165.1,5.51207]
[1625507150976,2.20527,2165.2,2165.1,3.3068]
[1625507152559,2.20527,2165.2,2164.3,3.073]
[1625507154170,7e-05,2165.2,2164.3,3.073]
[1625507154321,15.0908,2167.3,2164.3,3.073]
[1625507154636,2.20527,2165.6,2165.5,2.20527]
[1625507154733,2.20527,2165.6,2165.5,2.881]
[1625507156637,2.20527,2166.5,2165.5,7.29154]
[1625507157738,2.20527,2166.7,2165.5,7.29154]
[1625507157876,14.7901,2167.5,2165.5,7.29154]
[1625507158141,14.7555,2168.9,2165.5,7.29154]
[1625507158639,14.7555,2168.9,2167.2,2.20527]
[1625507158640,2.20527,2167.3,2167.2,2.20527]
[1625507158840,2.20527,2167.3,2167.2,5.50187]
[1625507159041,2.20527,2167.3,2167.2,3.2966]
[1625507159253,2.20527,2167.3,2167.2,2.20226701]
[1625507159373,2.20527,2167.3,2164.3,3.073]
[1625507159448,5.59037,2167.3,2162.4,1.15]
[1625507159650,5.59037,2167.3,2163.8,14.6664]
[1625507160060,5.59037,2167.3,2163.9,16.708993]
[1625507160550,5.59037,2167.3,2163.9,19.603193]
[1625507160648,2.20527,2166.1,2166.0,2.20527]
[1625507162001,4.41227,2166.1,2166.0,2.20527]
[1625507162704,6.61754,2166.1,2166.0,2.20527]
[1625507166415,6.61754,2166.1,2164.0,5.0]
[1625507166713,4.41227,2166.1,2165.6,2.20527]
[1625507168721,2.20527,2165.7,2165.6,2.20527]
[1625507169827,2.20527,2165.7,2163.8,14.6664]
[1625507170359,2.20527,2165.7,2161.4,7.43533842]
[1625507170526,2.20527,2165.7,2162.5,0.18511226]
[1625507170838,2.20527,2164.1,2164.0,2.20527]
[1625507171633,4.34397,2164.1,2164.0,2.20527]
[1625507171949,4.34397,2164.1,2162.5,4.759]
[1625507172046,4.34397,2164.1,2161.8,4.759]
[1625507172248,4.34397,2164.1,2161.9,0.1851205]
[1625507172780,4.34397,2164.1,2163.2,2.20527]
[1625507172855,2.20527,2163.4,2163.2,2.20527]
[1625507173754,2.20527,2163.4,2161.8,4.759]